[Event "Live Chess"]
[Site "Chess.com"]
[Date "2023.05.21"]
[Round "-"]
[White "Conradical12"]
[Black "alanmike75"]
[Result "0-1"]
[WhiteElo "1640"]
[BlackElo "1608"]
[TimeControl "300"]
[EndTime "19:36:28 PDT"]
[Termination "alanmike75 won by resignation"]

1. e4 {[%clk 0:04:56.5]} 1... e5 {[%clk 0:04:58.3]} 2. Nf3 {[%clk 0:04:53.3]}
2... d6 {[%clk 0:04:57.2]} 3. Bc4 {[%clk 0:04:52.2]} 3... Be7 {[%clk 0:04:55.7]}
4. O-O {[%clk 0:04:50.6]} 4... Nf6 {[%clk 0:04:54.7]} 5. c3 {[%clk 0:04:48.3]}
5... O-O {[%clk 0:04:53.4]} 6. d3 {[%clk 0:04:45.7]} 6... c5 {[%clk 0:04:49.9]}
7. Nbd2 {[%clk 0:04:44.1]} 7... Nc6 {[%clk 0:04:48.7]} 8. Qb3 {[%clk 0:04:42.7]}
8... Na5 {[%clk 0:04:39.6]} 9. Qa4 {[%clk 0:04:40.6]} 9... Nxc4 {[%clk
0:04:38.3]} 10. Qxc4 {[%clk 0:04:39.1]} 10... Be6 {[%clk 0:04:34.1]} 11. Qa4
{[%clk 0:04:38.2]} 11... a6 {[%clk 0:04:30]} 12. Qd1 {[%clk 0:04:36.1]} 12... b5
{[%clk 0:04:28.1]} 13. Ng5 {[%clk 0:04:35.2]} 13... Bd7 {[%clk 0:04:25.4]} 14.
c4 {[%clk 0:04:25.6]} 14... h6 {[%clk 0:04:20.7]} 15. Ngf3 {[%clk 0:04:21.7]}
15... Rb8 {[%clk 0:04:14.8]} 16. b3 {[%clk 0:04:18.7]} 16... b4 {[%clk
0:04:03.3]} 17. Bb2 {[%clk 0:04:15.6]} 17... a5 {[%clk 0:04:02]} 18. Re1 {[%clk
0:04:11]} 18... a4 {[%clk 0:04:00.6]} 19. Nf1 {[%clk 0:04:08.7]} 19... a3 {[%clk
0:03:57.6]} 20. Bc1 {[%clk 0:04:06.8]} 20... Nh7 {[%clk 0:03:40.8]} 21. Ne3
{[%clk 0:04:04.3]} 21... Be6 {[%clk 0:03:36.3]} 22. Nd5 {[%clk 0:04:02.6]} 22...
Bxd5 {[%clk 0:03:32.5]} 23. exd5 {[%clk 0:04:01.2]} 23... f5 {[%clk 0:03:29]}
24. Qe2 {[%clk 0:03:54.8]} 24... Bf6 {[%clk 0:03:24.8]} 25. Rb1 {[%clk
0:03:52.3]} 25... Qd7 {[%clk 0:03:17.6]} 26. g3 {[%clk 0:03:46.2]} 26... Rbe8
{[%clk 0:03:13.9]} 27. Nh4 {[%clk 0:03:42.6]} 27... Bxh4 {[%clk 0:03:10.3]} 28.
gxh4 {[%clk 0:03:41.5]} 28... Nf6 {[%clk 0:02:52.9]} 29. Kh1 {[%clk 0:03:37]}
29... Qf7 {[%clk 0:02:45.8]} 30. Rg1 {[%clk 0:03:34.3]} 30... Kh8 {[%clk
0:02:43.5]} 31. Qf3 {[%clk 0:03:26.2]} 31... Qh5 {[%clk 0:02:10.2]} 32. Qg2
{[%clk 0:03:19.3]} 32... Rf7 {[%clk 0:01:52.5]} 33. f4 {[%clk 0:03:14.7]} 33...
e4 {[%clk 0:01:46.8]} 34. Re1 {[%clk 0:02:58.6]} 34... Qxh4 {[%clk 0:01:35.5]}
35. Bd2 {[%clk 0:02:53.5]} 35... Rfe7 {[%clk 0:01:22.4]} 36. d4 {[%clk
0:02:50.1]} 36... e3 {[%clk 0:01:09.7]} 37. Bxb4 {[%clk 0:02:36.9]} 37... cxb4
{[%clk 0:01:06.5]} 38. Rg1 {[%clk 0:02:34.7]} 38... Qxf4 {[%clk 0:01:02.5]} 39.
Rbe1 {[%clk 0:02:33.2]} 39... Ng4 {[%clk 0:00:56.4]} 40. h3 {[%clk 0:02:28.5]}
40... Nf2+ {[%clk 0:00:54.1]} 0-1

[Event "Live Chess"]
[Site "Chess.com"]
[Date "2023.05.21"]
[Round "-"]
[White "romchyk1219"]
[Black "Fazer180"]
[Result "0-1"]
[WhiteElo "639"]
[BlackElo "1743"]
[TimeControl "300"]
[EndTime "19:37:09 PDT"]
[Termination "Fazer180 won by resignation"]

1. e4 {[%clk 0:04:58.7]} 1... e6 {[%clk 0:04:58.8]} 2. d4 {[%clk 0:04:56.8]}
2... d5 {[%clk 0:04:58.7]} 3. e5 {[%clk 0:04:55.4]} 3... c5 {[%clk 0:04:57.4]}
4. Nf3 {[%clk 0:04:55]} 4... Nc6 {[%clk 0:04:56.2]} 5. Be3 {[%clk 0:04:51.6]}
5... Qb6 {[%clk 0:04:52.5]} 6. dxc5 {[%clk 0:04:49.6]} 6... Bxc5 {[%clk
0:04:48.8]} 7. Bxc5 {[%clk 0:04:49.1]} 7... Qxc5 {[%clk 0:04:44.4]} 8. Bd3
{[%clk 0:04:45.6]} 8... Qb4+ {[%clk 0:04:36.3]} 9. Nc3 {[%clk 0:04:36.4]} 9...
Qxb2 {[%clk 0:04:31.2]} 10. Na4 {[%clk 0:04:30.7]} 10... Qb4+ {[%clk 0:04:28.2]}
11. Nc3 {[%clk 0:04:29.5]} 11... Qxc3+ {[%clk 0:04:26.6]} 0-1

[Event "Live Chess"]
[Site "Chess.com"]
[Date "2023.05.21"]
[Round "-"]
[White "OceanFloater"]
[Black "LiamBellwood"]
[Result "0-1"]
[WhiteElo "1015"]
[BlackElo "2026"]
[TimeControl "300"]
[EndTime "19:37:34 PDT"]
[Termination "LiamBellwood won by resignation"]

1. e4 {[%clk 0:04:56]} 1... e6 {[%clk 0:04:59.9]} 2. Nf3 {[%clk 0:04:53]} 2...
d5 {[%clk 0:04:59.8]} 3. exd5 {[%clk 0:04:51.5]} 3... exd5 {[%clk 0:04:59.7]} 4.
d4 {[%clk 0:04:50.5]} 4... Bd6 {[%clk 0:04:59.4]} 5. Nc3 {[%clk 0:04:49.3]} 5...
Ne7 {[%clk 0:04:59.3]} 6. Bd3 {[%clk 0:04:44.5]} 6... c6 {[%clk 0:04:59.2]} 7.
O-O {[%clk 0:04:42.9]} 7... Bg4 {[%clk 0:04:58.3]} 8. h3 {[%clk 0:04:41.4]} 8...
Bh5 {[%clk 0:04:57.5]} 9. Be2 {[%clk 0:04:38.8]} 9... O-O {[%clk 0:04:56.2]} 10.
Ne5 {[%clk 0:04:37.5]} 10... Bxe2 {[%clk 0:04:55.1]} 11. Qxe2 {[%clk 0:04:36.4]}
11... f6 {[%clk 0:04:54.7]} 12. Ng4 {[%clk 0:04:31.6]} 12... Qd7 {[%clk
0:04:48.5]} 13. Re1 {[%clk 0:04:29.9]} 13... Kf7 {[%clk 0:04:45.3]} 14. Bd2
{[%clk 0:04:13.1]} 14... Na6 {[%clk 0:04:44.3]} 15. a3 {[%clk 0:04:11.4]} 15...
Nc7 {[%clk 0:04:43.6]} 16. b4 {[%clk 0:04:07.1]} 16... Rfe8 {[%clk 0:04:36.5]}
17. Na4 {[%clk 0:04:05.9]} 17... Ng6 {[%clk 0:04:30.8]} 18. Qd3 {[%clk 0:04:03]}
18... b6 {[%clk 0:04:23.7]} 19. Rxe8 {[%clk 0:03:56.6]} 19... Rxe8 {[%clk
0:04:23.6]} 20. Re1 {[%clk 0:03:55]} 20... Rxe1+ {[%clk 0:04:20.8]} 21. Bxe1
{[%clk 0:03:53.8]} 21... Ne6 {[%clk 0:03:58.4]} 22. Nc3 {[%clk 0:03:45]} 22...
Nef4 {[%clk 0:03:50.5]} 23. Qf3 {[%clk 0:03:39.3]} 23... Qe6 {[%clk 0:03:43.3]}
24. Kf1 {[%clk 0:03:36.2]} 24... Nh4 {[%clk 0:03:37.8]} 25. g3 {[%clk
0:03:29.4]} 25... Nxf3 {[%clk 0:03:36.5]} 0-1

[Event "Live Chess"]
[Site "Chess.com"]
[Date "2023.05.21"]
[Round "-"]
[White "garyjc"]
[Black "therealab0ne"]
[Result "1-0"]
[WhiteElo "1048"]
[BlackElo "720"]
[TimeControl "300"]
[EndTime "19:37:56 PDT"]
[Termination "garyjc won by checkmate"]

1. e4 {[%clk 0:04:57.3]} 1... c5 {[%clk 0:04:59.3]} 2. Nc3 {[%clk 0:04:54.9]}
2... Nc6 {[%clk 0:04:58.1]} 3. f4 {[%clk 0:04:51.6]} 3... e6 {[%clk 0:04:54]} 4.
Nf3 {[%clk 0:04:42.7]} 4... Nf6 {[%clk 0:04:40.4]} 5. Bb5 {[%clk 0:04:33]} 5...
d5 {[%clk 0:04:33.4]} 6. Bxc6+ {[%clk 0:04:27.1]} 6... bxc6 {[%clk 0:04:32.2]}
7. e5 {[%clk 0:04:26.1]} 7... Ne4 {[%clk 0:04:30.1]} 8. Nxe4 {[%clk 0:04:21.9]}
8... dxe4 {[%clk 0:04:29.1]} 9. Ng5 {[%clk 0:04:13.9]} 9... Be7 {[%clk
0:04:23.2]} 10. O-O {[%clk 0:03:54.6]} 10... f5 {[%clk 0:04:06.5]} 11. d3 {[%clk
0:03:43.7]} 11... Bxg5 {[%clk 0:04:03.6]} 12. fxg5 {[%clk 0:03:41.9]} 12... Qb6
{[%clk 0:03:59]} 13. Be3 {[%clk 0:03:32]} 13... O-O {[%clk 0:03:52.6]} 14. Qe1
{[%clk 0:03:29.6]} 14... f4 {[%clk 0:03:51]} 15. Bf2 {[%clk 0:03:22.3]} 15... e3
{[%clk 0:03:43.2]} 16. Bh4 {[%clk 0:03:16.5]} 16... Bb7 {[%clk 0:03:30.7]} 17.
c4 {[%clk 0:02:59.3]} 17... Rad8 {[%clk 0:03:19.7]} 18. Rb1 {[%clk 0:02:50.4]}
18... Rxd3 {[%clk 0:03:12.9]} 19. Rd1 {[%clk 0:02:50.3]} 19... Rxd1 {[%clk
0:03:11.5]} 20. Qxd1 {[%clk 0:02:48.8]} 20... Ba6 {[%clk 0:03:01.8]} 21. b3
{[%clk 0:02:43.3]} 21... Rd8 {[%clk 0:02:55.1]} 22. Qe2 {[%clk 0:02:41.3]} 22...
Rd2 {[%clk 0:02:37.6]} 23. Qf3 {[%clk 0:02:27.9]} 23... Rxa2 {[%clk 0:02:26.8]}
24. Qxf4 {[%clk 0:02:26.4]} 24... Qxb3 {[%clk 0:02:25.3]} 25. g6 {[%clk
0:02:22.8]} 25... Bxc4 {[%clk 0:02:12.7]} 26. gxh7+ {[%clk 0:02:19.2]} 26...
Kxh7 {[%clk 0:02:06.2]} 27. Qe4+ {[%clk 0:02:07.7]} 27... g6 {[%clk 0:01:59.9]}
28. Rf7+ {[%clk 0:02:01.7]} 28... Kh6 {[%clk 0:01:53.9]} 29. Qf4+ {[%clk
0:01:56.3]} 29... g5 {[%clk 0:01:38.4]} 30. Qf6+ {[%clk 0:01:49.2]} 30... Kh5
{[%clk 0:01:34.3]} 31. Rh7+ {[%clk 0:01:41.8]} 31... Kg4 {[%clk 0:01:32.9]} 32.
h3# {[%clk 0:01:34]} 1-0

[Event "Live Chess"]
[Site "Chess.com"]
[Date "2023.05.21"]
[Round "-"]
[White "ClassyChameleon"]
[Black "smoggyrabbit"]
[Result "0-1"]
[WhiteElo "1084"]
[BlackElo "1736"]
[TimeControl "300"]
[EndTime "19:38:26 PDT"]
[Termination "smoggyrabbit won on time"]

1. e4 {[%clk 0:04:58.7]} 1... e6 {[%clk 0:04:59.1]} 2. d4 {[%clk 0:04:54.6]}
2... d5 {[%clk 0:04:58.1]} 3. e5 {[%clk 0:04:53.7]} 3... c5 {[%clk 0:04:56.7]}
4. Nf3 {[%clk 0:04:52]} 4... Nc6 {[%clk 0:04:55.7]} 5. c3 {[%clk 0:04:51.3]}
5... Bd7 {[%clk 0:04:54.8]} 6. Be2 {[%clk 0:04:48.6]} 6... Nge7 {[%clk
0:04:53.3]} 7. O-O {[%clk 0:04:47.1]} 7... Nf5 {[%clk 0:04:52.4]} 8. Bf4 {[%clk
0:04:39]} 8... Be7 {[%clk 0:04:44.6]} 9. Nbd2 {[%clk 0:04:33.9]} 9... cxd4
{[%clk 0:04:24.6]} 10. cxd4 {[%clk 0:04:28.7]} 10... O-O {[%clk 0:04:23.4]} 11.
Nb3 {[%clk 0:04:23.2]} 11... g5 {[%clk 0:04:05.1]} 12. Bg3 {[%clk 0:04:10.4]}
12... h5 {[%clk 0:03:59.3]} 13. h3 {[%clk 0:04:06.7]} 13... g4 {[%clk
0:03:36.7]} 14. hxg4 {[%clk 0:03:53.2]} 14... hxg4 {[%clk 0:03:35.7]} 15. Nh2
{[%clk 0:03:51.8]} 15... Nxg3 {[%clk 0:03:31.6]} 16. fxg3 {[%clk 0:03:49.7]}
16... Qb6 {[%clk 0:03:21.6]} 17. Bd3 {[%clk 0:03:43.7]} 17... f5 {[%clk
0:03:01.3]} 18. Nxg4 {[%clk 0:03:39]} 18... Nxd4 {[%clk 0:02:42.9]} 19. Nxd4
{[%clk 0:03:30]} 19... Qxd4+ {[%clk 0:02:41.1]} 20. Nf2 {[%clk 0:03:25.5]} 20...
Qxe5 {[%clk 0:02:35.8]} 21. g4 {[%clk 0:03:01.7]} 21... Bd6 {[%clk 0:02:30.1]}
22. Re1 {[%clk 0:02:26.4]} 22... Qh2+ {[%clk 0:02:20.7]} 23. Kf1 {[%clk
0:02:25.3]} 23... f4 {[%clk 0:01:45.4]} 24. Qf3 {[%clk 0:01:46.1]} 24... Qg3
{[%clk 0:01:12.4]} 25. Ke2 {[%clk 0:01:27.9]} 25... Bc6 {[%clk 0:00:48.1]} 26.
Nh1 {[%clk 0:01:07.3]} 26... Qxf3+ {[%clk 0:00:42.1]} 27. gxf3 {[%clk
0:01:06.2]} 27... Bb4 {[%clk 0:00:38.3]} 28. Rg1 {[%clk 0:01:03.2]} 28... Bc5
{[%clk 0:00:36.4]} 29. Rg2 {[%clk 0:01:01.2]} 29... e5 {[%clk 0:00:32.5]} 30.
Kd2 {[%clk 0:00:51.7]} 30... e4 {[%clk 0:00:30.5]} 31. fxe4 {[%clk 0:00:46.8]}
31... dxe4 {[%clk 0:00:30.4]} 32. Bc4+ {[%clk 0:00:43.3]} 32... Kg7 {[%clk
0:00:29.1]} 33. g5 {[%clk 0:00:41.1]} 33... e3+ {[%clk 0:00:27.8]} 34. Ke2
{[%clk 0:00:32.3]} 34... Bxg2 {[%clk 0:00:26.7]} 35. Bd3 {[%clk 0:00:23.1]}
35... f3+ {[%clk 0:00:25.4]} 36. Kd1 {[%clk 0:00:19]} 36... Rad8 {[%clk
0:00:22.8]} 37. Kc2 {[%clk 0:00:13.7]} 37... e2 {[%clk 0:00:18.6]} 38. Bxe2
{[%clk 0:00:10.9]} 38... fxe2 {[%clk 0:00:17.5]} 39. Ng3 {[%clk 0:00:07]} 39...
Rfe8 {[%clk 0:00:16.3]} 40. Nxe2 {[%clk 0:00:05.9]} 40... Rxe2+ {[%clk
0:00:14.5]} 41. Kc3 {[%clk 0:00:04.8]} 41... Be7 {[%clk 0:00:13.3]} 42. Kc4
{[%clk 0:00:03.5]} 42... Bxg5 {[%clk 0:00:12.2]} 43. Kb5 {[%clk 0:00:02.1]}
43... Rxb2+ {[%clk 0:00:10.8]} 44. Kc4 {[%clk 0:00:01.1]} 44... Bd5+ {[%clk
0:00:07.8]} 45. Kd3 {[%clk 0:00:00.3]} 45... Bf7+ {[%clk 0:00:06.9]} 0-1

[Event "Live Chess"]
[Site "Chess.com"]
[Date "2023.05.21"]
[Round "-"]
[White "LiamBellwood"]
[Black "romchyk1219"]
[Result "1-0"]
[WhiteElo "2026"]
[BlackElo "639"]
[TimeControl "300"]
[EndTime "19:38:26 PDT"]
[Termination "LiamBellwood won by checkmate"]

1. d4 {[%clk 0:04:59.4]} 1... Nf6 {[%clk 0:04:58.3]} 2. Nc3 {[%clk 0:04:55.9]}
2... g6 {[%clk 0:04:57.5]} 3. Bf4 {[%clk 0:04:54.3]} 3... Bg7 {[%clk 0:04:56.8]}
4. e4 {[%clk 0:04:51.7]} 4... O-O {[%clk 0:04:55.8]} 5. Qd2 {[%clk 0:04:51]}
5... d6 {[%clk 0:04:54.9]} 6. Bh6 {[%clk 0:04:49.1]} 6... Bxh6 {[%clk
0:04:52.6]} 7. Qxh6 {[%clk 0:04:49]} 7... d5 {[%clk 0:04:48.7]} 8. e5 {[%clk
0:04:45.1]} 8... Nfd7 {[%clk 0:04:46.1]} 9. Nf3 {[%clk 0:04:43.1]} 9... Nb6
{[%clk 0:04:44.8]} 10. Ng5 {[%clk 0:04:42.3]} 10... f6 {[%clk 0:04:33.1]} 11.
Qxh7# {[%clk 0:04:42.2]} 1-0

[Event "Live Chess"]
[Site "Chess.com"]
[Date "2023.05.21"]
[Round "-"]
[White "KeithArkell"]
[Black "alanmike75"]
[Result "1-0"]
[WhiteElo "2573"]
[BlackElo "1608"]
[TimeControl "300"]
[EndTime "19:39:56 PDT"]
[Termination "KeithArkell won by resignation"]

1. d4 {[%clk 0:04:56.8]} 1... d5 {[%clk 0:04:58.3]} 2. Nf3 {[%clk 0:04:54.8]}
2... Nf6 {[%clk 0:04:56.4]} 3. c4 {[%clk 0:04:53.8]} 3... c6 {[%clk 0:04:55]} 4.
Nc3 {[%clk 0:04:52.6]} 4... e6 {[%clk 0:04:53.8]} 5. cxd5 {[%clk 0:04:51.7]}
5... exd5 {[%clk 0:04:52.4]} 6. Qc2 {[%clk 0:04:50.7]} 6... Bd6 {[%clk
0:04:43.3]} 7. Bg5 {[%clk 0:04:49.3]} 7... h6 {[%clk 0:04:40.4]} 8. Bxf6 {[%clk
0:04:48.5]} 8... Qxf6 {[%clk 0:04:37.9]} 9. Nxd5 {[%clk 0:04:47.5]} 9... Qd8
{[%clk 0:04:28.5]} 10. Nc3 {[%clk 0:04:46.5]} 10... O-O {[%clk 0:04:26.6]} 11.
e3 {[%clk 0:04:45.6]} 11... Bg4 {[%clk 0:04:20.3]} 12. Be2 {[%clk 0:04:44.6]}
12... Nd7 {[%clk 0:04:17.7]} 13. O-O {[%clk 0:04:43.4]} 13... Nf6 {[%clk
0:04:14]} 14. h3 {[%clk 0:04:42.1]} 14... Bh5 {[%clk 0:03:59.9]} 15. Rad1 {[%clk
0:04:40.9]} 15... Bg6 {[%clk 0:03:57.2]} 16. Bd3 {[%clk 0:04:39.4]} 16... Bxd3
{[%clk 0:03:55.2]} 17. Qxd3 {[%clk 0:04:37.8]} 17... Re8 {[%clk 0:03:53.4]} 18.
Rfe1 {[%clk 0:04:31.9]} 18... Bb4 {[%clk 0:03:45.6]} 19. a3 {[%clk 0:04:30.5]}
19... Ba5 {[%clk 0:03:43.3]} 20. b4 {[%clk 0:04:29.2]} 20... Bc7 {[%clk
0:03:41.7]} 21. d5 {[%clk 0:04:22.3]} 21... cxd5 {[%clk 0:03:31.6]} 22. Nxd5
{[%clk 0:04:22.2]} 22... Nxd5 {[%clk 0:03:26.6]} 23. Qxd5 {[%clk 0:04:16.2]}
23... Qxd5 {[%clk 0:03:23.3]} 24. Rxd5 {[%clk 0:04:15.1]} 24... Re7 {[%clk
0:03:21.6]} 25. Red1 {[%clk 0:04:13.3]} 1-0

[Event "Live Chess"]
[Site "Chess.com"]
[Date "2023.05.21"]
[Round "-"]
[White "Tushinskiy"]
[Black "Biranidun"]
[Result "0-1"]
[WhiteElo "2187"]
[BlackElo "2517"]
[TimeControl "300"]
[EndTime "19:40:00 PDT"]
[Termination "Biranidun won by resignation"]

1. d4 {[%clk 0:04:56.5]} 1... Nf6 {[%clk 0:04:59.1]} 2. c3 {[%clk 0:04:56.4]}
2... g6 {[%clk 0:04:58.3]} 3. Nf3 {[%clk 0:04:55.6]} 3... Bg7 {[%clk 0:04:57.7]}
4. Bg5 {[%clk 0:04:55.1]} 4... d6 {[%clk 0:04:57]} 5. Nbd2 {[%clk 0:04:54.3]}
5... O-O {[%clk 0:04:55.8]} 6. e4 {[%clk 0:04:53.7]} 6... c5 {[%clk 0:04:55.4]}
7. d5 {[%clk 0:04:52.7]} 7... e6 {[%clk 0:04:52.9]} 8. dxe6 {[%clk 0:04:51.9]}
8... Bxe6 {[%clk 0:04:52.8]} 9. Be2 {[%clk 0:04:50.7]} 9... h6 {[%clk
0:04:51.9]} 10. Bh4 {[%clk 0:04:49.8]} 10... Nc6 {[%clk 0:04:51.4]} 11. O-O
{[%clk 0:04:48.6]} 11... Qc7 {[%clk 0:04:48.7]} 12. Re1 {[%clk 0:04:45.9]} 12...
Rfe8 {[%clk 0:04:47.3]} 13. Qc2 {[%clk 0:04:44.1]} 13... a6 {[%clk 0:04:33.9]}
14. Rad1 {[%clk 0:04:40.2]} 14... b5 {[%clk 0:04:32.9]} 15. Bg3 {[%clk
0:04:37.8]} 15... Nh5 {[%clk 0:04:31.3]} 16. Nf1 {[%clk 0:04:34]} 16... Rad8
{[%clk 0:04:23.7]} 17. Ne3 {[%clk 0:04:32.1]} 17... Nxg3 {[%clk 0:04:18.4]} 18.
hxg3 {[%clk 0:04:32]} 18... Ne7 {[%clk 0:04:15.5]} 19. a4 {[%clk 0:04:30.1]}
19... Qc6 {[%clk 0:04:14]} 20. axb5 {[%clk 0:04:28.5]} 20... axb5 {[%clk
0:04:13.9]} 21. Bf1 {[%clk 0:04:18.3]} 21... Rb8 {[%clk 0:04:12.6]} 22. Rd2
{[%clk 0:04:12.1]} 22... b4 {[%clk 0:04:10.5]} 23. Red1 {[%clk 0:04:08]} 23...
Red8 {[%clk 0:04:08.5]} 24. c4 {[%clk 0:03:56.1]} 24... b3 {[%clk 0:04:07.5]}
25. Qb1 {[%clk 0:03:54.8]} 25... Qc7 {[%clk 0:03:56.9]} 26. Nd5 {[%clk
0:03:46.4]} 26... Nxd5 {[%clk 0:03:54.1]} 27. exd5 {[%clk 0:03:46.3]} 27... Bg4
{[%clk 0:03:52.2]} 28. Bd3 {[%clk 0:03:42.5]} 28... Re8 {[%clk 0:03:49.1]} 29.
Re1 {[%clk 0:03:41.1]} 29... Rxe1+ {[%clk 0:03:45.7]} 30. Qxe1 {[%clk 0:03:41]}
30... Kf8 {[%clk 0:03:44.1]} 31. Re2 {[%clk 0:03:39.2]} 31... Bf6 {[%clk
0:03:39.8]} 32. Qd1 {[%clk 0:03:35.6]} 32... Re8 {[%clk 0:03:33.1]} 33. Rxe8+
{[%clk 0:03:33.2]} 33... Kxe8 {[%clk 0:03:33]} 34. Qxb3 {[%clk 0:03:32.3]} 34...
Kf8 {[%clk 0:03:28.8]} 35. Bf1 {[%clk 0:03:25.5]} 35... Kg7 {[%clk 0:03:26.7]}
36. Qc2 {[%clk 0:03:20.4]} 36... Qb6 {[%clk 0:03:24.4]} 37. b3 {[%clk 0:03:19]}
37... Qa5 {[%clk 0:03:23.8]} 38. Nh2 {[%clk 0:03:16.5]} 38... Bf5 {[%clk
0:03:22.6]} 39. Bd3 {[%clk 0:03:13.5]} 39... Qe1+ {[%clk 0:03:21.2]} 40. Nf1
{[%clk 0:03:12.6]} 40... Bg4 {[%clk 0:03:16.6]} 41. Qd2 {[%clk 0:03:03.6]} 41...
Qa1 {[%clk 0:02:55.7]} 42. Qf4 {[%clk 0:03:01.8]} 42... Qd4 {[%clk 0:02:44.9]}
43. Qxd4 {[%clk 0:02:57.4]} 43... Bxd4 {[%clk 0:02:44.8]} 44. Bc2 {[%clk
0:02:55.2]} 44... Be2 {[%clk 0:02:41.2]} 45. Nd2 {[%clk 0:02:52.8]} 45... f5
{[%clk 0:02:40.2]} 46. Nf3 {[%clk 0:02:42.1]} 46... Bc3 {[%clk 0:02:38.4]} 47.
Nh2 {[%clk 0:02:35.5]} 47... Kf6 {[%clk 0:02:35.7]} 48. Nf1 {[%clk 0:02:33.7]}
48... Ke5 {[%clk 0:02:31]} 49. Ne3 {[%clk 0:02:28.4]} 49... Bd2 {[%clk
0:02:24.8]} 50. Kh2 {[%clk 0:02:10.7]} 50... Kd4 {[%clk 0:02:14.2]} 51. Bxf5
{[%clk 0:01:58.3]} 51... gxf5 {[%clk 0:02:13]} 52. Nxf5+ {[%clk 0:01:58.2]}
52... Ke5 {[%clk 0:02:09.6]} 53. Nxh6 {[%clk 0:01:55.9]} 53... Bxh6 {[%clk
0:02:08.4]} 0-1